fUST/lending_fUST_20240423
["ID","MTS","AMOUNT","RATE_DAILY","PERIOD"]
[323261281,1713856249889,-500.0,0.00024931,2]
[323261283,1713856249898,-1068.29,0.00024931,2]
[323261285,1713856249907,-500.0,0.00024931,2]
[323261287,1713856249916,-500.0,0.00024931,2]
[323261289,1713856249926,-870.62,0.00024931,2]
[323261291,1713856249935,-500.0,0.00024931,2]
[323261293,1713856249944,-151.0,0.00024931,2]
[323261295,1713856249953,-500.0,0.00024931,2]
[323261297,1713856249962,-500.0,0.00024931,2]
[323261299,1713856249971,-500.0,0.00024931,2]
[323261301,1713856249981,-500.0,0.00024931,2]
[323261303,1713856249992,-477.4125913,0.00024931,2]
[323261305,1713856250002,-2778.67,0.00024931,2]
[323261307,1713856250011,-500.0,0.00024931,2]
[323261309,1713856250021,-500.0,0.00024931,2]
[323261311,1713856250030,-1782.69,0.00024931,2]
[323261313,1713856250039,-500.0,0.00024931,2]
[323261315,1713856250049,-500.0,0.00024931,2]
[323261317,1713856250058,-426.4984284,0.00024931,2]
[323261319,1713856250069,-500.0,0.00024931,2]
[323261321,1713856250079,-151.0,0.00024931,2]
[323261323,1713856250089,-538.84661475,0.00024931,2]
[323261325,1713856250099,-151.0,0.00024931,2]
[323261327,1713856250108,-151.0,0.00024931,2]
[323261329,1713856250118,-500.0,0.00024931,2]
[323261331,1713856250128,-500.0,0.00024931,2]
[323261333,1713856250137,-500.0,0.00024931,2]
[323261335,1713856250147,-1735.31,0.00024931,2]
[323261337,1713856250156,-810.86,0.00024931,2]
[323261339,1713856250165,-500.0,0.00024931,2]
[323261341,1713856250175,-776.3,0.00024931,2]
[323261343,1713856250184,-500.0,0.00024931,2]
[323261345,1713856250193,-1418.72,0.00024931,2]
[323261347,1713856250202,-643.51,0.00024931,2]
[323261349,1713856250211,-1690.71,0.00024931,2]
[323261351,1713856250220,-903.35,0.00024931,2]
[323261353,1713856250229,-397.62483078,0.00024931,2]
[323261354,1713856250238,-500.0,0.00024931,2]
[323261356,1713856250247,-500.0,0.00024931,2]
[323261358,1713856250259,-500.0,0.00024931,2]
[323261360,1713856250268,-253.81728719,0.00024931,2]
[323261362,1713856250277,-500.0,0.00024931,2]
[323261364,1713856250286,-500.0,0.00024931,2]
[323261366,1713856250296,-748.54,0.00024931,2]
[323261368,1713856250305,-500.0,0.00024931,2]
[323261370,1713856250314,-500.0,0.00024931,2]
[323261372,1713856250323,-430.83998372,0.00024931,2]
[323261374,1713856250334,-670.48,0.00024931,2]
[323261376,1713856250344,-500.0,0.00024931,2]
[323261378,1713856250353,-28908.31,0.00024931,2]
[323261380,1713856250362,-500.0,0.00024931,2]
[323261382,1713856250375,-2109.08,0.00024931,2]
[323261384,1713856250385,-500.0,0.00024931,2]
[323261386,1713856250395,-500.0,0.00024931,2]
[323261389,1713856250404,-500.0,0.00024931,2]
[323261391,1713856250414,-500.0,0.00024931,2]
[323261392,1713856250423,-500.0,0.00024931,2]
[323261394,1713856250432,-500.0,0.00024931,2]
[323261396,1713856250441,-500.0,0.00024931,2]
[323261398,1713856250450,-500.0,0.00024931,2]
[323261400,1713856250462,-934.82,0.00024931,2]
[323261402,1713856250471,-2386.88,0.00024931,2]
[323261404,1713856250480,-330.53788584,0.00024931,2]
[323261406,1713856250490,-500.0,0.00024931,2]
[323261408,1713856250499,-500.0,0.00024931,2]
[323261411,1713856250509,-1355.0,0.00024931,2]
[323261412,1713856250518,-500.0,0.00024931,2]
[323261414,1713856250527,-276.539279,0.00024931,2]
[323261416,1713856250536,-276.539279,0.00024931,2]
[323261418,1713856250546,-633.6,0.00024931,2]
[323261421,1713856250555,-276.539279,0.00024931,2]
[323261422,1713856250565,-276.539279,0.00024931,2]
[323261425,1713856250574,-2299.62,0.00024931,2]
[323261426,1713856250583,-276.539279,0.00024931,2]
[323261428,1713856250592,-276.539279,0.00024931,2]
[323261430,1713856250602,-367.64545515,0.00024931,2]
[323261438,1713856250780,-132.35454485,0.00024931,2]
[323261439,1713856250789,-500.0,0.00024931,2]
[323261440,1713856250798,-500.0,0.00024931,2]
[323261441,1713856250807,-500.0,0.00024931,2]
[323261442,1713856250816,-500.0,0.00024931,2]
[323261443,1713856250825,-2868.17,0.00024931,2]
[323261444,1713856250835,-586.83,0.00024931,2]
[323261447,1713856250935,-2022.52,0.00024931,2]
[323261449,1713856250944,-500.0,0.00024931,2]
[323261451,1713856250954,-500.0,0.00024931,2]
[323261453,1713856250963,-500.0,0.00024931,2]
[323261455,1713856250973,-500.0,0.00024931,2]
[323261457,1713856250984,-1577.954185,0.00024931,2]
[323261459,1713856250995,-1577.954185,0.00024931,2]
[323261461,1713856251004,-1577.954185,0.00024931,2]
[323261463,1713856251014,-1577.954185,0.00024931,2]
[323261465,1713856251024,-1577.954185,0.00024931,2]
[323261467,1713856251035,-1577.954185,0.00024931,2]
[323261469,1713856251044,-500.0,0.00024931,2]
[323261471,1713856251054,-500.0,0.00024931,2]
[323261473,1713856251064,-2981.3,0.00024931,2]
[323261475,1713856251073,-151.0,0.00024931,2]
[323261477,1713856251084,-151.0,0.00024931,2]
[323261479,1713856251094,-151.0,0.00024931,2]
[323261481,1713856251103,-500.0,0.00024931,2]
[323261483,1713856251112,-595.40982783,0.00024931,2]
[323261484,1713856251126,-151.0,0.00024931,2]
[323261487,1713856251136,-151.0,0.00024931,2]
[323261488,1713856251145,-261.249387,0.00024931,2]
[323261490,1713856251154,-500.0,0.00024931,2]
[323261493,1713856251165,-500.0,0.00024931,2]
[323261494,1713856251174,-500.0,0.00024931,2]
[323261496,1713856251184,-500.0,0.00024931,2]
[323261498,1713856251193,-500.0,0.00024931,2]
[323261500,1713856251203,-501.801894,0.00024931,2]
[323261502,1713856251212,-500.0,0.00024931,2]
[323261504,1713856251220,-1069.26,0.00024931,2]
[323261506,1713856251230,-500.0,0.00024931,2]
[323261508,1713856251239,-500.0,0.00024931,2]
[323261510,1713856251248,-500.0,0.00024931,2]
[323261512,1713856251258,-785.73,0.00024931,2]
[323261514,1713856251267,-932.02,0.00024931,2]
[323261516,1713856251276,-500.0,0.00024931,2]
[323261518,1713856251285,-500.0,0.00024931,2]
[323261520,1713856251294,-1489.72,0.00024931,2]
[323261522,1713856251304,-500.0,0.00024931,2]
[323261524,1713856251313,-500.0,0.00024931,2]
[323261526,1713856251322,-863.7,0.00024931,2]
[323261528,1713856251331,-500.0,0.00024931,2]
[323261530,1713856251341,-500.0,0.00024931,2]
[323261532,1713856251350,-2076.19,0.00024931,2]
[323261534,1713856251359,-500.0,0.00024931,2]
[323261536,1713856251369,-500.0,0.00024931,2]
[323261538,1713856251378,-639.0301972,0.00024931,2]
[323261540,1713856251387,-501.64305756,0.00024931,2]
[323261542,1713856251397,-500.0,0.00024931,2]
[323261544,1713856251407,-4374.56,0.00024931,2]
[323261546,1713856251416,-500.0,0.00024931,2]
[323261548,1713856251425,-601.54252436,0.00024931,2]
[323261550,1713856251435,-500.0,0.00024931,2]
[323261552,1713856251445,-500.0,0.00024931,2]
[323261554,1713856251454,-1571.47,0.00024931,2]
[323261556,1713856251464,-2184.02,0.00024931,2]
[323261558,1713856251473,-500.0,0.00024931,2]
[323261560,1713856251482,-500.0,0.00024931,2]
[323261563,1713856251494,-500.0,0.00024931,2]
[323261564,1713856251504,-382.52497473,0.00024931,2]
[323261567,1713856251515,-501.47424012,0.00024931,2]
[323261569,1713856251526,-500.0,0.00024931,2]
[323261571,1713856251537,-500.0,0.00024931,2]
[323261573,1713856251547,-500.0,0.00024931,2]
[323261575,1713856251557,-814.87,0.00024931,2]
[323261576,1713856251567,-705.9,0.00024931,2]
[323261579,1713856251578,-384.7920932,0.00024931,2]
[323261580,1713856251589,-500.0,0.00024931,2]
[323261583,1713856251599,-2371.22,0.00024931,2]
[323261585,1713856251609,-2269.69,0.00024931,2]
[323261587,1713856251620,-500.0,0.00024931,2]
[323261588,1713856251630,-500.0,0.00024931,2]
[323261591,1713856251639,-506.64792212,0.00024931,2]
[323261593,1713856251650,-500.0,0.00024931,2]
[323261595,1713856251660,-2696.65562484,0.00025,7]
[323261597,1713856251670,-157.27673588,0.00025,2]
[323261598,1713856251681,-154.82968734,0.00025,2]
[323261600,1713856251693,-62084.18798777,0.00025,7]
[323261602,1713856251704,-1015.30463835,0.00025,2]
[323261604,1713856251713,-515.68052767,0.00025,2]
[323261606,1713856251725,-270.231558,0.00025,2]
[323261608,1713856251736,-270.231558,0.00025,2]
[323261610,1713856251746,-151.0,0.00025,2]
[323261612,1713856251758,-1124.753673,0.00025,2]
[323261615,1713856251768,-1124.753673,0.00025,2]
[323261617,1713856251778,-151.0,0.00025,2]
[323261618,1713856251787,-323.327753,0.00025,2]
[323261620,1713856251797,-323.327753,0.00025,2]
[323261623,1713856251806,-3850.343051,0.00025,2]
[323261624,1713856251816,-700.26358,0.00025,2]
[323261626,1713856251825,-3850.343043,0.00025,2]
[323261629,1713856251834,-700.26357567,0.00025,2]
[323261630,1713856251845,-151.0,0.00025,2]
[323261632,1713856251855,-1334.912873,0.00025,2]
[323261634,1713856251867,-1142.0,0.00025,2]
[323261636,1713856251879,-150.190599,0.00025,2]
[323261639,1713856251889,-1000.0,0.00025,2]
[323261641,1713856251899,-236.0,0.00025175,35]
[323261643,1713856251909,-236.0,0.00025185,35]
[323261645,1713856251920,-161.8513095,0.00025192,2]
[323261647,1713856251930,-154.82968734,0.00025192,2]
[323261648,1713856251940,-1577.954185,0.00025192,2]
[323261651,1713856251949,-1577.954179,0.00025192,2]
[323261653,1713856251959,-151.0,0.00025192,2]
[323261655,1713856251970,-236.0,0.00025195,35]
[323261656,1713856251981,-151.0,0.00025205,2]
[323261658,1713856251993,-151.0,0.00025205,2]
[323261660,1713856252004,-151.0,0.00025205,2]
[323261662,1713856252015,-151.0,0.00025205,2]
[323261665,1713856252026,-500.0,0.00025205,2]
[323261667,1713856252036,-500.0,0.00025205,2]
[323261668,1713856252046,-500.0,0.00025205,2]
[323261670,1713856252056,-500.0,0.00025205,2]
[323261672,1713856252066,-156.903209,0.00025205,2]
[323261674,1713856252076,-156.903209,0.00025205,2]
[323261677,1713856252087,-156.903209,0.00025205,2]
[323261678,1713856252097,-156.903209,0.00025205,2]
[323261681,1713856252108,-503.55187489,0.00025205,2]
[323261683,1713856252120,-500.0,0.00025205,2]
[323261684,1713856252131,-412.28502868,0.00025205,2]
[323261686,1713856252141,-512.76219954,0.00025205,2]
[323261689,1713856252151,-501.51699211,0.00025205,2]
[323261691,1713856252161,-500.0,0.00025205,2]
[323261692,1713856252170,-500.0,0.00025205,2]
[323261694,1713856252180,-503.97322775,0.00025205,2]
[323261697,1713856252189,-500.0,0.00025205,2]
[323261698,1713856252198,-151.0,0.00025205,2]
[323261700,1713856252208,-500.0,0.00025205,2]
[323261703,1713856252219,-700.17,0.00025205,2]
[323261705,1713856252229,-500.0,0.00025205,2]
[323261707,1713856252239,-500.0,0.00025205,2]
[323261709,1713856252248,-151.0,0.00025205,2]
[323261710,1713856252257,-500.0,0.00025205,2]
[323261713,1713856252267,-419.34376184,0.00025205,2]
[323261715,1713856252277,-500.8315681,0.00025205,2]
[323261717,1713856252290,-270.231558,0.00025205,2]
[323261719,1713856252299,-508.63255559,0.00025205,2]
[323261721,1713856252309,-501.56112135,0.00025205,2]
[323261723,1713856252318,-500.0,0.00025205,2]
[323261725,1713856252328,-270.231558,0.00025205,2]
[323261727,1713856252338,-500.0,0.00025205,2]
[323261729,1713856252349,-500.0,0.00025205,2]
[323261731,1713856252359,-500.0,0.00025205,2]
[323261733,1713856252370,-500.0,0.00025205,2]
[323261735,1713856252380,-151.0,0.00025205,2]
[323261737,1713856252389,-500.0,0.00025205,2]
[323261739,1713856252398,-502.73353405,0.00025205,2]
[323261749,1713856252478,-500.0,0.00025205,2]
[323261751,1713856252487,-500.0,0.00025205,2]
[323261753,1713856252496,-2138.055324,0.00025205,2]
[323261755,1713856252505,-2138.055324,0.00025205,2]
[323261757,1713856252514,-500.0,0.00025205,2]
[323261759,1713856252522,-500.0,0.00025205,2]
[323261761,1713856252531,-500.0,0.00025205,2]
[323261763,1713856252540,-2138.055324,0.00025205,2]
[323261765,1713856252548,-2138.055324,0.00025205,2]
[323261767,1713856252557,-500.0,0.00025205,2]
[323261769,1713856252566,-500.0,0.00025205,2]
[323261771,1713856252575,-500.0,0.00025205,2]
[323261773,1713856252584,-318.99552843,0.00025205,2]
[323261774,1713856252593,-500.0,0.00025205,2]
[323261776,1713856252602,-500.0,0.00025205,2]
[323261777,1713856252610,-500.0,0.00025205,2]
[323261779,1713856252621,-500.0,0.00025205,2]
[323261781,1713856252629,-500.0,0.00025205,2]
[323261782,1713856252639,-1124.753673,0.00025205,2]
[323261784,1713856252649,-500.0,0.00025205,2]
[323261786,1713856252658,-1124.753673,0.00025205,2]
[323261787,1713856252667,-500.0,0.00025205,2]
[323261789,1713856252677,-500.0,0.00025205,2]
[323261791,1713856252686,-500.0,0.00025205,2]
[323261792,1713856252694,-151.0,0.00025205,2]
[323261794,1713856252703,-500.0,0.00025205,2]
[323261796,1713856252712,-500.0,0.00025205,2]
[323261797,1713856252721,-358.25647142,0.00025205,2]
[323261799,1713856252730,-500.0,0.00025205,2]
[323261801,1713856252739,-500.0,0.00025205,2]
[323261802,1713856252748,-646.79348549,0.00025205,2]
[323261804,1713856252757,-500.0,0.00025205,2]
[323261806,1713856252766,-500.0,0.00025205,2]
[323261808,1713856252774,-500.0,0.00025205,2]
[323261809,1713856252783,-500.0,0.00025205,2]
[323261811,1713856252792,-573.08796358,0.00025205,2]
[323261813,1713856252801,-500.0,0.00025205,2]
[323261814,1713856252810,-500.0,0.00025205,2]
[323261816,1713856252819,-500.0,0.00025205,2]
[323261817,1713856252827,-500.0,0.00025205,2]
[323261819,1713856252836,-500.0,0.00025205,2]
[323261821,1713856252846,-500.0,0.00025205,2]
[323261823,1713856252855,-500.0,0.00025205,2]
[323261824,1713856252864,-500.0,0.00025205,2]
[323261826,1713856252878,-605.7,0.00025205,2]
[323261828,1713856252887,-500.0,0.00025205,2]
[323261829,1713856252896,-1011.32531507,0.00025205,2]
[323261831,1713856252905,-323.327753,0.00025205,2]
[323261833,1713856252914,-528.63445549,0.00025205,2]
[323261834,1713856252923,-500.0,0.00025205,2]
[323261836,1713856252931,-500.0,0.00025205,2]
[323261838,1713856252940,-256.70487909,0.00025205,2]
[323261840,1713856252948,-323.327753,0.00025205,2]
[323261841,1713856252958,-854.16,0.00025205,2]
[323261843,1713856252967,-500.0,0.00025205,2]
[323261845,1713856252977,-859.34,0.00025205,2]
[323261847,1713856252991,-500.0,0.00025205,2]
[323261849,1713856253004,-500.0,0.00025205,2]
[323261850,1713856253013,-500.0,0.00025205,2]
[323261852,1713856253022,-500.0,0.00025205,2]
[323261854,1713856253032,-515.9,0.00025205,2]
[323261856,1713856253042,-877.39,0.00025205,2]
[323261857,1713856253051,-500.0,0.00025205,2]
[323261859,1713856253060,-500.0,0.00025205,2]
[323261861,1713856253069,-500.0,0.00025205,2]
[323261863,1713856253079,-548.79,0.00025205,2]
[323261864,1713856253088,-599.58134715,0.00025205,2]
[323261866,1713856253097,-500.0,0.00025205,2]
[323261868,1713856253106,-500.0,0.00025205,2]
[323261870,1713856253115,-452.44008399,0.00025205,2]
[323261871,1713856253126,-331.2550565,0.00025205,2]
[323261873,1713856253136,-500.0,0.00025205,2]
[323261875,1713856253147,-500.0,0.00025205,2]
[323261876,1713856253157,-500.0,0.00025205,2]
[323261878,1713856253168,-500.0,0.00025205,2]
[323261880,1713856253178,-500.0,0.00025205,2]
[323261882,1713856253188,-500.0,0.00025205,2]
[323261883,1713856253197,-500.0,0.00025205,2]
[323261885,1713856253207,-500.0,0.00025205,2]
[323261887,1713856253217,-567.84,0.00025205,2]
[323261889,1713856253227,-500.0,0.00025205,2]
[323261891,1713856253236,-500.0,0.00025205,2]
[323261892,1713856253246,-500.0,0.00025205,2]
[323261894,1713856253257,-500.0,0.00025205,2]
[323261896,1713856253267,-935.67,0.00025205,2]
[323261898,1713856253278,-219.10325438,0.00025205,2]
[323261900,1713856253288,-500.0,0.00025205,2]
[323261901,1713856253298,-228.56938211,0.00025205,2]
[323261903,1713856253309,-519.8426737,0.00025205,2]
[323261905,1713856253319,-304.83845243,0.00025205,2]
[323261907,1713856253331,-500.0,0.00025205,2]
[323261909,1713856253342,-500.0,0.00025205,2]
[323261911,1713856253352,-500.0,0.00025205,2]
[323261912,1713856253361,-500.0,0.00025205,2]
[323261914,1713856253373,-500.0,0.00025205,2]
[323261916,1713856253382,-500.0,0.00025205,2]
[323261918,1713856253391,-500.0,0.00025205,2]
[323261920,1713856253401,-500.0,0.00025205,2]
[323261921,1713856253411,-500.0,0.00025205,2]
[323261923,1713856253420,-500.0,0.00025205,2]
[323261924,1713856253430,-500.0,0.00025205,2]
[323261926,1713856253440,-500.0,0.00025205,2]
[323261928,1713856253450,-500.0,0.00025205,2]
[323261930,1713856253459,-502.5443026,0.00025205,2]
[323261932,1713856253469,-500.0,0.00025205,2]
[323261933,1713856253479,-500.0,0.00025205,2]
[323261935,1713856253488,-500.0,0.00025205,2]
[323261937,1713856253497,-1324.12,0.00025205,2]
[323261939,1713856253507,-940.68,0.00025205,2]
[323261940,1713856253518,-500.0,0.00025205,2]
[323261942,1713856253528,-500.0,0.00025205,2]
[323261944,1713856253538,-500.0,0.00025205,2]
[323261946,1713856253548,-500.0,0.00025205,2]
[323261947,1713856253558,-500.0,0.00025205,2]
[323261949,1713856253567,-500.0,0.00025205,2]
[323261951,1713856253578,-500.0,0.00025205,2]
[323261953,1713856253588,-503.11260544,0.00025205,2]
[323261955,1713856253597,-318.85481475,0.00025205,2]
[323261956,1713856253606,-500.0,0.00025205,2]
[323261958,1713856253615,-500.0,0.00025205,2]
[323261960,1713856253625,-500.0,0.00025205,2]
[323261962,1713856253633,-500.0,0.00025205,2]
[323261963,1713856253642,-500.0,0.00025205,2]
[323261965,1713856253652,-500.0,0.00025205,2]
[323261967,1713856253661,-500.0,0.00025205,2]
[323261969,1713856253670,-500.0,0.00025205,2]
[323261971,1713856253679,-383.26226879,0.00025205,2]
[323261972,1713856253688,-500.0,0.00025205,2]
[323261974,1713856253697,-500.0,0.00025205,2]
[323261976,1713856253705,-500.0,0.00025205,2]
[323261978,1713856253714,-500.0,0.00025205,2]
[323261979,1713856253722,-500.0,0.00025205,2]
[323261981,1713856253731,-500.0,0.00025205,2]
[323261983,1713856253740,-538.21,0.00025205,2]
[323261985,1713856253748,-508.63,0.00025205,2]
[323261992,1713856253826,-500.0,0.00025205,2]
[323261994,1713856253835,-500.0,0.00025205,2]
[323261995,1713856253844,-500.0,0.00025205,2]
[323261997,1713856253853,-500.0,0.00025205,2]
[323261999,1713856253862,-500.0,0.00025205,2]
[323262001,1713856253871,-500.0,0.00025205,2]
[323262003,1713856253880,-500.0,0.00025205,2]
[323262004,1713856253891,-500.0,0.00025205,2]
[323262006,1713856253900,-659.23,0.00025205,2]
[323262008,1713856253909,-1382.44,0.00025205,2]
[323262010,1713856253919,-500.0,0.00025205,2]
[323262011,1713856253927,-500.0,0.00025205,2]
[323262013,1713856253936,-522.90352804,0.00025205,2]
[323262015,1713856253946,-500.0,0.00025205,2]
[323262017,1713856253955,-500.0,0.00025205,2]
[323262018,1713856253964,-849.05,0.00025205,2]
[323262020,1713856253973,-500.0,0.00025205,2]
[323262022,1713856253984,-500.0,0.00025205,2]
[323262024,1713856253995,-537.07,0.00025205,2]
[323262026,1713856254004,-500.0,0.00025205,2]
[323262027,1713856254013,-500.0,0.00025205,2]
[323262029,1713856254022,-503.54994106,0.00025205,2]
[323262031,1713856254033,-162.04735115,0.00025205,2]
[323262033,1713856254042,-500.0,0.00025205,2]
[323262034,1713856254051,-950.09,0.00025205,2]
[323262036,1713856254060,-806.67,0.00025205,2]
[323262038,1713856254070,-500.0,0.00025205,2]
[323262040,1713856254079,-1312.32,0.00025205,2]
[323262041,1713856254088,-500.0,0.00025205,2]
[323262043,1713856254097,-816.41,0.00025205,2]
[323262045,1713856254107,-500.0,0.00025205,2]
[323262047,1713856254115,-1068.29,0.00025205,2]
[323262048,1713856254125,-500.0,0.00025205,2]
[323262050,1713856254133,-502.92430987,0.00025205,2]
[323262052,1713856254142,-870.62,0.00025205,2]
[323262054,1713856254152,-500.0,0.00025205,2]
[323262056,1713856254162,-151.0,0.00025205,2]
[323262057,1713856254171,-500.0,0.00025205,2]
[323262059,1713856254180,-500.0,0.00025205,2]
[323262061,1713856254189,-500.0,0.00025205,2]
[323262063,1713856254198,-500.0,0.00025205,2]
[323262064,1713856254207,-500.0,0.00025205,2]
[323262066,1713856254216,-2778.67,0.00025205,2]
[323262068,1713856254226,-500.0,0.00025205,2]
[323262070,1713856254234,-1782.69,0.00025205,2]
[323262071,1713856254243,-500.0,0.00025205,2]
[323262073,1713856254252,-500.0,0.00025205,2]
[323262075,1713856254262,-500.0,0.00025205,2]
[323262077,1713856254271,-500.0,0.00025205,2]
[323262079,1713856254279,-500.0,0.00025205,2]
[323262080,1713856254289,-151.0,0.00025205,2]
[323262082,1713856254298,-500.0,0.00025205,2]
[323262084,1713856254307,-1735.31,0.00025205,2]
[323262086,1713856254315,-810.86,0.00025205,2]
[323262087,1713856254324,-500.0,0.00025205,2]
[323262089,1713856254333,-776.3,0.00025205,2]
[323262091,1713856254342,-514.04924849,0.00025205,2]
[323262093,1713856254352,-1418.72,0.00025205,2]
[323262094,1713856254360,-643.51,0.00025205,2]
[323262096,1713856254370,-1690.71,0.00025205,2]
[323262098,1713856254379,-903.35,0.00025205,2]
[323262099,1713856254387,-500.0,0.00025205,2]
[323262101,1713856254396,-500.0,0.00025205,2]
[323262103,1713856254405,-500.0,0.00025205,2]
[323262104,1713856254414,-500.0,0.00025205,2]
[323262106,1713856254422,-500.0,0.00025205,2]
[323262108,1713856254431,-748.54,0.00025205,2]
[323262110,1713856254440,-220.56944494,0.00025205,2]
[323262112,1713856254450,-500.0,0.00025205,2]
[323262114,1713856254459,-670.48,0.00025205,2]
[323262116,1713856254468,-500.0,0.00025205,2]
[323262118,1713856254476,-28908.31,0.00025205,2]
[323262120,1713856254485,-500.0,0.00025205,2]
[323262122,1713856254493,-2109.08,0.00025205,2]
[323262124,1713856254503,-500.0,0.00025205,2]
[323262126,1713856254512,-500.0,0.00025205,2]
[323262128,1713856254520,-500.0,0.00025205,2]
[323262130,1713856254530,-500.0,0.00025205,2]
[323262132,1713856254539,-500.0,0.00025205,2]
[323262134,1713856254548,-500.0,0.00025205,2]
[323262136,1713856254557,-500.0,0.00025205,2]
[323262138,1713856254566,-500.0,0.00025205,2]
[323262140,1713856254575,-934.82,0.00025205,2]
[323262142,1713856254584,-2386.88,0.00025205,2]
[323262144,1713856254593,-500.0,0.00025205,2]
[323262146,1713856254602,-500.0,0.00025205,2]
[323262148,1713856254611,-1355.0,0.00025205,2]
[323262150,1713856254621,-500.0,0.00025205,2]
[323262152,1713856254630,-633.6,0.00025205,2]
[323262153,1713856254639,-276.539279,0.00025205,2]
[323262154,1713856254648,-2299.62,0.00025205,2]
[323262155,1713856254658,-276.539285,0.00025205,2]
[323262156,1713856254667,-500.0,0.00025205,2]
[323262157,1713856254676,-500.0,0.00025205,2]
[323262158,1713856254685,-500.0,0.00025205,2]
[323262159,1713856254694,-500.0,0.00025205,2]
[323262160,1713856254704,-500.0,0.00025205,2]
[323262161,1713856254713,-2868.17,0.00025205,2]
[323262162,1713856254722,-586.83,0.00025205,2]
[323262163,1713856254731,-2022.52,0.00025205,2]
[323262164,1713856254741,-500.0,0.00025205,2]
[323262165,1713856254750,-506.17633041,0.00025205,2]
[323262166,1713856254759,-500.0,0.00025205,2]
[323262167,1713856254768,-500.0,0.00025205,2]
[323262168,1713856254778,-500.0,0.00025205,2]
[323262169,1713856254787,-500.0,0.00025205,2]
[323262170,1713856254797,-2981.3,0.00025205,2]
[323262171,1713856254806,-500.0,0.00025205,2]
[323262172,1713856254816,-500.0,0.00025205,2]
[323262173,1713856254828,-500.0,0.00025205,2]
[323262174,1713856254837,-472.74861449,0.00025205,2]
[323262175,1713856254847,-500.0,0.00025205,2]
[323262176,1713856254856,-500.0,0.00025205,2]
[323262177,1713856254866,-500.0,0.00025205,2]
[323262178,1713856254876,-1069.26,0.00025205,2]
[323262179,1713856254886,-500.0,0.00025205,2]
[323262180,1713856254895,-500.0,0.00025205,2]
[323262181,1713856254906,-500.0,0.00025205,2]
[323262182,1713856254916,-785.73,0.00025205,2]
[323262183,1713856254926,-932.02,0.00025205,2]
[323262184,1713856254935,-500.0,0.00025205,2]
[323262185,1713856254944,-500.0,0.00025205,2]
[323262186,1713856254954,-1489.72,0.00025205,2]
[323262187,1713856254963,-500.0,0.00025205,2]
[323262193,1713856254972,-500.0,0.00025205,2]
[323262195,1713856255049,-863.7,0.00025205,2]
[323262196,1713856255060,-531.39220395,0.00025205,2]
[323262198,1713856255069,-500.0,0.00025205,2]
[323262200,1713856255078,-2076.19,0.00025205,2]
[323262202,1713856255088,-500.0,0.00025205,2]
[323262204,1713856255097,-500.0,0.00025205,2]
[323262206,1713856255106,-500.0,0.00025205,2]
[323262208,1713856255115,-4374.56,0.00025205,2]
[323262210,1713856255126,-500.0,0.00025205,2]
[323262212,1713856255136,-516.7381015,0.00025205,2]